[Event "FIDE Grand Swiss 2023"]
[Site "Villa Marina, Douglas, Isle of Man, Isle Of Man"]
[Date "2023.10.26"]
[Round "2.1"]
[White "Caruana, Fabiano"]
[Black "Niemann, Hans Moke"]
[Result "1-0"]
[TimeControl "40/90 + 30 + 30s/move"]
[WhiteFideId "2020009"]
[BlackFideId "2093596"]
[WhiteElo "2786"]
[BlackElo "2667"]

1. e4 {[%clk 01:40:54]} {[%emt 00:00:05]} e5 {[%clk 01:40:29]} {[%emt
00:00:29]} 2. Nf3 {[%clk 01:41:16]} {[%emt 00:00:09]} Nc6 {[%clk 01:40:43]}
{[%emt 00:00:15]} 3. Bb5 {[%clk 01:41:41]} {[%emt 00:00:06]} Nf6 {[%clk
01:38:08]} {[%emt 00:03:04]} 4. d3 {[%clk 01:38:11]} {[%emt 00:04:01]} Bc5
{[%clk 01:38:08]} {[%emt 00:00:29]} 5. Bxc6 {[%clk 01:38:37]} {[%emt 00:00:06]}
dxc6 {[%clk 01:38:27]} {[%emt 00:00:10]} 6. h3 {[%clk 01:38:11]} {[%emt
00:00:56]} Nd7 {[%clk 01:32:16]} {[%emt 00:06:36]} 7. Nc3 {[%clk 01:37:36]}
{[%emt 00:01:10]} O-O {[%clk 01:31:08]} {[%emt 00:01:38]} 8. Be3 {[%clk
01:29:20]} {[%emt 00:08:47]} Bd6 {[%clk 01:28:46]} {[%emt 00:02:49]} 9. O-O
{[%clk 01:22:07]} {[%emt 00:07:46]} Re8 {[%clk 01:27:58]} {[%emt 00:01:16]} 10.
Nd2 {[%clk 01:22:14]} {[%emt 00:00:25]} Nf8 {[%clk 01:27:35]} {[%emt 00:00:50]}
11. Nc4 {[%clk 01:21:31]} {[%emt 00:01:16]} Ng6 {[%clk 01:27:19]} {[%emt
00:00:44]} 12. d4 {[%clk 01:12:54]} {[%emt 00:09:08]} Be6 {[%clk 01:15:25]}
{[%emt 00:12:24]} 13. Nxd6 {[%clk 01:09:30]} {[%emt 00:03:55]} cxd6 {[%clk
01:14:08]} {[%emt 00:01:45]} 14. d5 {[%clk 01:04:14]} {[%emt 00:05:48]} cxd5
{[%clk 01:03:04]} {[%emt 00:11:33]} 15. Nxd5 {[%clk 01:04:35]} {[%emt
00:00:10]} Qd7 {[%clk 00:47:39]} {[%emt 00:15:55]} 16. Qd3 {[%clk 01:01:08]}
{[%emt 00:03:57]} Bxd5 {[%clk 00:42:16]} {[%emt 00:05:53]} 17. Qxd5 {[%clk
01:01:11]} {[%emt 00:00:28]} Ne7 {[%clk 00:42:38]} {[%emt 00:00:06]} 18. Qd3
{[%clk 00:50:28]} {[%emt 00:11:14]} d5 {[%clk 00:42:06]} {[%emt 00:01:01]} 19.
exd5 {[%clk 00:50:50]} {[%emt 00:00:09]} Qxd5 {[%clk 00:42:25]} {[%emt
00:00:10]} 20. Rfd1 {[%clk 00:49:35]} {[%emt 00:01:45]} Red8 {[%clk 00:37:24]}
{[%emt 00:05:31]} 21. Qe2 {[%clk 00:42:54]} {[%emt 00:07:12]} Qa5 {[%clk
00:30:50]} {[%emt 00:07:04]} 22. Qg4 {[%clk 00:41:53]} {[%emt 00:01:32]} Qa6
{[%clk 00:26:51]} {[%emt 00:04:29]} 23. Rxd8+ {[%clk 00:38:34]} {[%emt
00:03:49]} Rxd8 {[%clk 00:27:15]} {[%emt 00:00:05]} 24. Rd1 {[%clk 00:38:59]}
{[%emt 00:00:06]} Ra8 {[%clk 00:16:15]} {[%emt 00:11:29]} 25. Rd7 {[%clk
00:35:41]} {[%emt 00:03:49]} Ng6 {[%clk 00:15:10]} {[%emt 00:01:34]} 26. Qf3
{[%clk 00:33:50]} {[%emt 00:02:22]} Qxa2 {[%clk 00:13:28]} {[%emt 00:02:12]} 27.
b3 {[%clk 00:30:32]} {[%emt 00:03:48]} Nh8 {[%clk 00:11:20]} {[%emt 00:02:37]}
28. Qxb7 {[%clk 00:29:21]} {[%emt 00:01:43]} Re8 {[%clk 00:11:45]} {[%emt
00:00:04]} 29. Qc6 {[%clk 00:28:44]} {[%emt 00:01:08]} h6 {[%clk 00:10:22]}
{[%emt 00:01:51]} 30. Rxa7 {[%clk 00:28:57]} {[%emt 00:00:18]} Qb1+ {[%clk
00:10:47]} {[%emt 00:00:05]} 31. Kh2 {[%clk 00:29:25]} {[%emt 00:00:03]} Rf8
{[%clk 00:11:02]} {[%emt 00:00:14]} 32. Qc4 {[%clk 00:20:43]} {[%emt 00:09:12]}
Rd8 {[%clk 00:09:19]} {[%emt 00:02:12]} 33. b4 {[%clk 00:17:27]} {[%emt
00:03:48]} Rb8 {[%clk 00:09:30]} {[%emt 00:00:18]} 34. c3 {[%clk 00:14:56]}
{[%emt 00:03:02]} Rd8 {[%clk 00:09:55]} {[%emt 00:00:04]} 35. Qa2 {[%clk
00:08:21]} {[%emt 00:07:06]} Qe4 {[%clk 00:08:26]} {[%emt 00:01:57]} 36. b5
{[%clk 00:08:17]} {[%emt 00:00:36]} Kh7 {[%clk 00:06:32]} {[%emt 00:02:23]} 37.
b6 {[%clk 00:08:39]} {[%emt 00:00:09]} f5 {[%clk 00:05:53]} {[%emt 00:01:08]}
38. Qa4 {[%clk 00:06:58]} {[%emt 00:02:12]} Qb1 {[%clk 00:05:11]} {[%emt
00:01:11]} 39. Qh4 {[%clk 00:04:51]} {[%emt 00:02:38]} Rd6 {[%clk 00:05:28]}
{[%emt 00:00:13]} 40. Qe7 {[%clk 00:04:57]} {[%emt 00:00:24]} Rg6 {[%clk
00:05:46]} {[%emt 00:00:11]} 41. Qxe5 {[%clk 00:05:22]} {[%emt 00:00:06]} 1-0

[Event "FIDE Grand Swiss 2023"]
[Site "Villa Marina, Douglas, Isle of Man, Isle Of Man"]
[Date "2023.10.26"]
[Round "2.2"]
[White "Bacrot, Etienne"]
[Black "Rapport, Richard"]
[Result "1/2-1/2"]
[TimeControl "40/90 + 30 + 30s/move"]
[WhiteFideId "605506"]
[BlackFideId "738590"]
[WhiteElo "2669"]
[BlackElo "2752"]

1. e4 {[%clk 01:40:57]} {[%emt 00:00:02]} c6 {[%clk 01:40:21]} {[%emt
00:00:40]} 2. d4 {[%clk 01:41:20]} {[%emt 00:00:07]} d5 {[%clk 01:40:45]}
{[%emt 00:00:05]} 3. e5 {[%clk 01:41:47]} {[%emt 00:00:04]} Bf5 {[%clk
01:41:06]} {[%emt 00:00:09]} 4. Nf3 {[%clk 01:42:11]} {[%emt 00:00:05]} e6
{[%clk 01:41:31]} {[%emt 00:00:06]} 5. Be2 {[%clk 01:42:35]} {[%emt 00:00:05]}
Nd7 {[%clk 01:41:28]} {[%emt 00:00:33]} 6. O-O {[%clk 01:37:50]} {[%emt
00:05:16]} a5 {[%clk 01:41:25]} {[%emt 00:00:33]} 7. a4 {[%clk 01:35:55]}
{[%emt 00:02:25]} f6 {[%clk 01:41:25]} {[%emt 00:00:30]} 8. exf6 {[%clk
01:28:04]} {[%emt 00:08:20]} Ngxf6 {[%clk 01:40:48]} {[%emt 00:01:07]} 9. Bf4
{[%clk 01:21:14]} {[%emt 00:07:20]} Nh5 {[%clk 01:21:02]} {[%emt 00:20:16]} 10.
Be5 {[%clk 01:05:45]} {[%emt 00:15:59]} Nxe5 {[%clk 01:17:30]} {[%emt
00:04:02]} 11. Nxe5 {[%clk 01:05:43]} {[%emt 00:00:33]} Nf4 {[%clk 01:16:54]}
{[%emt 00:01:07]} 12. Bg4 {[%clk 00:39:54]} {[%emt 00:26:18]} Bd6 {[%clk
00:59:06]} {[%emt 00:18:18]} 13. Bxf5 {[%clk 00:27:46]} {[%emt 00:12:39]} Bxe5
{[%clk 00:54:50]} {[%emt 00:04:45]} 14. dxe5 {[%clk 00:23:16]} {[%emt
00:05:01]} exf5 {[%clk 00:55:06]} {[%emt 00:00:13]} 15. Nd2 {[%clk 00:23:42]}
{[%emt 00:00:04]} O-O {[%clk 00:48:49]} {[%emt 00:06:48]} 16. Nf3 {[%clk
00:24:08]} {[%emt 00:00:03]} Qb6 {[%clk 00:47:29]} {[%emt 00:01:50]} 17. Qd2
{[%clk 00:23:57]} {[%emt 00:00:42]} Ne6 {[%clk 00:47:34]} {[%emt 00:00:24]} 18.
c3 {[%clk 00:24:21]} {[%emt 00:00:06]} f4 {[%clk 00:46:48]} {[%emt 00:01:16]}
19. Rfe1 {[%clk 00:23:18]} {[%emt 00:01:33]} Rad8 {[%clk 00:37:38]} {[%emt
00:09:40]} 20. Nd4 {[%clk 00:21:19]} {[%emt 00:02:29]} c5 {[%clk 00:36:58]}
{[%emt 00:01:11]} 21. Nxe6 {[%clk 00:18:02]} {[%emt 00:03:46]} Qxe6 {[%clk
00:36:10]} {[%emt 00:01:17]} 22. f3 {[%clk 00:18:28]} {[%emt 00:00:05]} Rf5
{[%clk 00:33:01]} {[%emt 00:03:39]} 23. Qe2 {[%clk 00:15:21]} {[%emt 00:03:38]}
Re8 {[%clk 00:26:53]} {[%emt 00:06:39]} 24. Qb5 {[%clk 00:12:53]} {[%emt
00:02:58]} b6 {[%clk 00:26:47]} {[%emt 00:00:36]} 25. h3 {[%clk 00:12:36]}
{[%emt 00:00:47]} Qg6 {[%clk 00:24:44]} {[%emt 00:02:32]} 26. Qd7 {[%clk
00:11:31]} {[%emt 00:01:35]} Qe6 {[%clk 00:21:52]} {[%emt 00:03:22]} 27. Qb5
{[%clk 00:11:59]} {[%emt 00:00:02]} Qg6 {[%clk 00:14:01]} {[%emt 00:08:22]} 28.
Qd7 {[%clk 00:12:23]} {[%emt 00:00:06]} Rfxe5 {[%clk 00:13:24]} {[%emt
00:01:07]} 29. Rxe5 {[%clk 00:12:37]} {[%emt 00:00:16]} Rxe5 {[%clk 00:13:51]}
{[%emt 00:00:03]} 30. Qd8+ {[%clk 00:12:13]} {[%emt 00:00:53]} Qe8 {[%clk
00:13:48]} {[%emt 00:00:33]} 31. Qxb6 {[%clk 00:12:37]} {[%emt 00:00:06]} Re1+
{[%clk 00:10:55]} {[%emt 00:03:23]} 32. Rxe1 {[%clk 00:12:59]} {[%emt
00:00:08]} Qxe1+ {[%clk 00:11:23]} {[%emt 00:00:02]} 33. Kh2 {[%emt 00:00:19]}
1/2-1/2

[Event "FIDE Grand Swiss 2023"]
[Site "Villa Marina, Douglas, Isle of Man, Isle Of Man"]
[Date "2023.10.26"]
[Round "2.3"]
[White "Aronian, Levon"]
[Black "Cheparinov, Ivan"]
[Result "1/2-1/2"]
[TimeControl "40/90 + 30 + 30s/move"]
[WhiteFideId "13300474"]
[BlackFideId "2905540"]
[WhiteElo "2742"]
[BlackElo "2658"]

1. c4 {[%clk 01:40:55]} {[%emt 00:00:05]} e5 {[%clk 01:40:56]} {[%emt
00:00:04]} 2. g3 {[%clk 01:41:19]} {[%emt 00:00:06]} Nf6 {[%clk 01:41:21]}
{[%emt 00:00:06]} 3. Bg2 {[%clk 01:41:43]} {[%emt 00:00:05]} c6 {[%clk
01:41:47]} {[%emt 00:00:04]} 4. d4 {[%clk 01:41:58]} {[%emt 00:00:16]} Bb4+
{[%clk 01:41:53]} {[%emt 00:00:24]} 5. Bd2 {[%clk 01:40:07]} {[%emt 00:02:21]}
Bxd2+ {[%clk 01:42:15]} {[%emt 00:00:07]} 6. Qxd2 {[%clk 01:40:31]} {[%emt
00:00:07]} d6 {[%clk 01:42:38]} {[%emt 00:00:06]} 7. Nc3 {[%clk 01:40:17]}
{[%emt 00:00:45]} O-O {[%clk 01:43:02]} {[%emt 00:00:05]} 8. d5 {[%clk
01:37:19]} {[%emt 00:03:28]} Qe7 {[%clk 01:40:43]} {[%emt 00:02:49]} 9. Rd1
{[%clk 01:35:16]} {[%emt 00:02:34]} Rd8 {[%clk 01:40:02]} {[%emt 00:01:11]} 10.
b3 {[%clk 01:31:53]} {[%emt 00:03:52]} cxd5 {[%clk 01:39:48]} {[%emt 00:00:44]}
11. Nxd5 {[%clk 01:28:27]} {[%emt 00:03:56]} Nxd5 {[%clk 01:36:31]} {[%emt
00:03:48]} 12. Qxd5 {[%clk 01:28:44]} {[%emt 00:00:13]} Nc6 {[%clk 01:35:08]}
{[%emt 00:01:53]} 13. e3 {[%clk 01:21:31]} {[%emt 00:07:43]} Be6 {[%clk
01:31:28]} {[%emt 00:04:10]} 14. Qd2 {[%clk 01:21:24]} {[%emt 00:00:37]} e4
{[%clk 01:28:09]} {[%emt 00:03:48]} 15. Bxe4 {[%clk 01:13:19]} {[%emt
00:08:36]} d5 {[%clk 01:23:27]} {[%emt 00:05:12]} 16. cxd5 {[%clk 01:13:44]}
{[%emt 00:00:05]} Bxd5 {[%clk 01:23:35]} {[%emt 00:00:21]} 17. Bxd5 {[%clk
01:14:10]} {[%emt 00:00:04]} Nb4 {[%clk 01:24:01]} {[%emt 00:00:05]} 18. Qb2
{[%clk 01:13:25]} {[%emt 00:01:15]} Nxd5 {[%clk 01:16:25]} {[%emt 00:08:06]} 19.
Ne2 {[%clk 01:13:33]} {[%emt 00:00:21]} Qb4+ {[%clk 01:15:42]} {[%emt
00:01:13]} 20. Rd2 {[%clk 01:13:58]} {[%emt 00:00:05]} Qe4 {[%clk 01:15:57]}
{[%emt 00:00:15]} 21. O-O {[%clk 01:14:23]} {[%emt 00:00:06]} Nxe3 {[%clk
01:16:20]} {[%emt 00:00:07]} 22. Rxd8+ {[%clk 01:14:50]} {[%emt 00:00:03]} Rxd8
{[%clk 01:16:46]} {[%emt 00:00:04]} 23. fxe3 {[%clk 01:15:16]} {[%emt
00:00:04]} Qxe3+ {[%clk 01:17:14]} {[%emt 00:00:02]} 24. Rf2 {[%clk 01:15:03]}
{[%emt 00:00:42]} Rd2 {[%clk 01:17:36]} {[%emt 00:00:08]} 25. Qc3 {[%clk
01:14:57]} {[%emt 00:00:36]} Rxe2 {[%clk 01:18:01]} {[%emt 00:00:05]} 26. Qc8+
{[%clk 01:15:17]} {[%emt 00:00:11]} Qe8 {[%clk 01:18:28]} {[%emt 00:00:03]} 27.
Qxb7 {[%clk 01:15:42]} {[%emt 00:00:05]} Re1+ {[%clk 01:15:33]} {[%emt
00:03:25]} 28. Kg2 {[%clk 01:15:47]} {[%emt 00:00:24]} h5 {[%clk 01:15:25]}
{[%emt 00:00:38]} 29. h4 {[%clk 01:14:05]} {[%emt 00:02:12]} a5 {[%clk
01:14:18]} {[%emt 00:01:38]} 30. Kh2 {[%clk 01:13:38]} {[%emt 00:00:57]} Re7
{[%clk 01:13:17]} {[%emt 00:01:31]} 31. Qf3 {[%clk 01:13:48]} {[%emt 00:00:19]}
1/2-1/2

[Event "FIDE Grand Swiss 2023"]
[Site "Villa Marina, Douglas, Isle of Man, Isle Of Man"]
[Date "2023.10.26"]
[Round "2.4"]
[White "Predke, Alexandr"]
[Black "Duda, Jan-Krzysztof"]
[Result "1-0"]
[TimeControl "40/90 + 30 + 30s/move"]
[WhiteFideId "24107581"]
[BlackFideId "1170546"]
[WhiteElo "2656"]
[BlackElo "2726"]

1. d4 {[%clk 01:40:52]} {[%emt 00:00:06]} Nf6 {[%clk 01:40:50]} {[%emt
00:00:10]} 2. c4 {[%clk 01:41:17]} {[%emt 00:00:05]} e6 {[%clk 01:41:16]}
{[%emt 00:00:04]} 3. Nf3 {[%clk 01:40:47]} {[%emt 00:01:00]} d5 {[%clk
01:41:39]} {[%emt 00:00:08]} 4. Nc3 {[%clk 01:41:11]} {[%emt 00:00:06]} dxc4
{[%clk 01:42:03]} {[%emt 00:00:06]} 5. e4 {[%clk 01:41:30]} {[%emt 00:00:11]}
Bb4 {[%clk 01:42:26]} {[%emt 00:00:07]} 6. Bxc4 {[%clk 01:41:45]} {[%emt
00:00:14]} Nxe4 {[%clk 01:42:50]} {[%emt 00:00:06]} 7. O-O {[%clk 01:42:03]}
{[%emt 00:00:12]} Nf6 {[%clk 01:43:14]} {[%emt 00:00:06]} 8. Qc2 {[%clk
01:42:19]} {[%emt 00:00:15]} O-O {[%clk 01:43:06]} {[%emt 00:00:38]} 9. Rd1
{[%clk 01:42:36]} {[%emt 00:00:13]} Nbd7 {[%clk 01:41:51]} {[%emt 00:01:45]} 10.
Ne5 {[%clk 01:42:03]} {[%emt 00:01:02]} Be7 {[%clk 01:29:26]} {[%emt 00:12:56]}
11. Rd3 {[%clk 01:37:39]} {[%emt 00:04:54]} Nb6 {[%clk 01:26:54]} {[%emt
00:03:02]} 12. Bb3 {[%clk 01:36:45]} {[%emt 00:01:24]} Nfd5 {[%clk 01:22:11]}
{[%emt 00:05:13]} 13. Rh3 {[%clk 01:32:58]} {[%emt 00:04:17]} f5 {[%clk
01:21:47]} {[%emt 00:00:54]} 14. Qe2 {[%clk 01:29:55]} {[%emt 00:03:32]} Qe8
{[%clk 01:19:21]} {[%emt 00:02:56]} 15. Bd2 {[%clk 01:28:40]} {[%emt 00:01:46]}
a5 {[%clk 01:10:27]} {[%emt 00:09:23]} 16. a4 {[%clk 01:19:03]} {[%emt
00:10:07]} Bf6 {[%clk 01:07:45]} {[%emt 00:03:12]} 17. Re1 {[%clk 01:07:06]}
{[%emt 00:12:27]} c6 {[%clk 01:00:40]} {[%emt 00:07:35]} 18. g4 {[%clk
00:54:07]} {[%emt 00:13:29]} Bxe5 {[%clk 00:51:39]} {[%emt 00:09:32]} 19. dxe5
{[%clk 00:48:00]} {[%emt 00:06:36]} Bd7 {[%clk 00:31:19]} {[%emt 00:20:51]} 20.
gxf5 {[%clk 00:45:33]} {[%emt 00:02:57]} Rxf5 {[%clk 00:31:24]} {[%emt
00:00:25]} 21. Ne4 {[%clk 00:41:45]} {[%emt 00:04:17]} Qe7 {[%clk 00:22:48]}
{[%emt 00:09:07]} 22. Qg4 {[%clk 00:31:47]} {[%emt 00:10:28]} Rxe5 {[%clk
00:16:32]} {[%emt 00:06:45]} 23. Bc2 {[%clk 00:25:56]} {[%emt 00:06:21]} Nc4
{[%clk 00:13:28]} {[%emt 00:03:34]} 24. Bg5 {[%clk 00:18:58]} {[%emt 00:07:27]}
Qb4 {[%clk 00:09:59]} {[%emt 00:03:59]} 25. Re2 {[%clk 00:18:14]} {[%emt
00:01:14]} g6 {[%clk 00:07:07]} {[%emt 00:03:23]} 26. Qh4 {[%clk 00:14:28]}
{[%emt 00:04:17]} h5 {[%clk 00:07:14]} {[%emt 00:00:23]} 27. Qg3 {[%clk
00:14:13]} {[%emt 00:00:44]} Qxb2 {[%clk 00:05:15]} {[%emt 00:02:29]} 28. Nf6+
{[%clk 00:11:55]} {[%emt 00:02:48]} Kg7 {[%clk 00:03:40]} {[%emt 00:02:06]} 29.
Nxh5+ {[%clk 00:09:52]} {[%emt 00:02:32]} gxh5 {[%clk 00:01:16]} {[%emt
00:02:55]} 30. Bh6+ {[%clk 00:09:09]} {[%emt 00:01:13]} Kf7 {[%clk 00:01:27]}
{[%emt 00:00:18]} 31. Qg7+ {[%clk 00:09:34]} {[%emt 00:00:04]} 1-0

[Event "FIDE Grand Swiss 2023"]
[Site "Villa Marina, Douglas, Isle of Man, Isle Of Man"]
[Date "2023.10.26"]
[Round "2.5"]
[White "Yu, Yangyi"]
[Black "Shirov, Alexei"]
[Result "1/2-1/2"]
[TimeControl "40/90 + 30 + 30s/move"]
[WhiteFideId "8603820"]
[BlackFideId "2209390"]
[WhiteElo "2720"]
[BlackElo "2655"]

1. d4 {[%clk 01:40:54]} {[%emt 00:00:05]} d5 {[%clk 01:40:56]} {[%emt
00:00:04]} 2. c4 {[%clk 01:41:15]} {[%emt 00:00:09]} c6 {[%clk 01:41:22]}
{[%emt 00:00:04]} 3. Nf3 {[%clk 01:41:30]} {[%emt 00:00:14]} Nf6 {[%clk
01:41:43]} {[%emt 00:00:10]} 4. Nc3 {[%clk 01:41:47]} {[%emt 00:00:14]} e6
{[%clk 01:42:08]} {[%emt 00:00:05]} 5. cxd5 {[%clk 01:41:31]} {[%emt 00:00:45]}
exd5 {[%clk 01:42:32]} {[%emt 00:00:06]} 6. Qc2 {[%clk 01:41:52]} {[%emt
00:00:10]} g6 {[%clk 01:39:05]} {[%emt 00:03:57]} 7. h3 {[%clk 01:41:53]}
{[%emt 00:00:29]} Bf5 {[%clk 01:36:57]} {[%emt 00:02:37]} 8. Qb3 {[%clk
01:40:34]} {[%emt 00:01:50]} Qb6 {[%clk 01:37:11]} {[%emt 00:00:15]} 9. g4
{[%clk 01:40:39]} {[%emt 00:00:26]} Qxb3 {[%clk 01:36:00]} {[%emt 00:01:41]} 10.
axb3 {[%clk 01:40:57]} {[%emt 00:00:11]} Be6 {[%clk 01:31:49]} {[%emt
00:04:40]} 11. Bg2 {[%clk 01:38:38]} {[%emt 00:02:50]} h5 {[%clk 01:18:01]}
{[%emt 00:14:18]} 12. g5 {[%clk 01:38:28]} {[%emt 00:00:41]} Nfd7 {[%clk
01:18:23]} {[%emt 00:00:07]} 13. Bf4 {[%clk 01:33:14]} {[%emt 00:05:44]} Be7
{[%clk 01:18:01]} {[%emt 00:00:52]} 14. h4 {[%clk 01:24:37]} {[%emt 00:09:07]}
O-O {[%clk 01:16:11]} {[%emt 00:02:21]} 15. Bh3 {[%clk 01:24:04]} {[%emt
00:01:02]} Bxh3 {[%clk 00:42:38]} {[%emt 00:34:04]} 16. Rxh3 {[%clk 01:23:18]}
{[%emt 00:01:15]} Rd8 {[%clk 00:43:06]} {[%emt 00:00:02]} 17. e3 {[%clk
01:16:53]} {[%emt 00:06:56]} Nf8 {[%clk 00:43:14]} {[%emt 00:00:21]} 18. Ne5
{[%clk 01:09:00]} {[%emt 00:08:23]} Ne6 {[%clk 00:42:48]} {[%emt 00:00:56]} 19.
Rf3 {[%clk 01:06:50]} {[%emt 00:02:40]} Nd7 {[%clk 00:42:00]} {[%emt 00:01:18]}
20. Bg3 {[%clk 01:04:31]} {[%emt 00:02:49]} Nxe5 {[%clk 00:41:56]} {[%emt
00:00:34]} 21. Bxe5 {[%clk 01:04:59]} {[%emt 00:00:02]} Bd6 {[%clk 00:31:07]}
{[%emt 00:11:19]} 22. Bxd6 {[%clk 00:55:32]} {[%emt 00:09:57]} Rxd6 {[%clk
00:31:32]} {[%emt 00:00:04]} 23. Rf6 {[%clk 00:55:28]} {[%emt 00:00:35]} Rd7
{[%clk 00:31:03]} {[%emt 00:00:59]} 24. b4 {[%clk 00:51:32]} {[%emt 00:04:26]}
Nc7 {[%clk 00:31:00]} {[%emt 00:00:33]} 25. Ra5 {[%clk 00:48:57]} {[%emt
00:03:06]} a6 {[%clk 00:28:18]} {[%emt 00:03:11]} 26. Ra1 {[%clk 00:37:49]}
{[%emt 00:11:39]} Ne8 {[%clk 00:27:45]} {[%emt 00:01:02]} 27. Rf4 {[%clk
00:36:19]} {[%emt 00:01:59]} Nd6 {[%clk 00:28:04]} {[%emt 00:00:12]} 28. Na4
{[%clk 00:34:25]} {[%emt 00:02:24]} Re7 {[%clk 00:27:43]} {[%emt 00:00:50]} 29.
Nc5 {[%clk 00:34:34]} {[%emt 00:00:22]} Kg7 {[%clk 00:27:54]} {[%emt 00:00:19]}
30. Ke2 {[%clk 00:32:36]} {[%emt 00:02:29]} Rae8 {[%clk 00:24:36]} {[%emt
00:03:47]} 31. Kd3 {[%emt 00:05:59]} Ne4 {[%emt 00:03:23]} 32. Rh1 {[%emt
00:02:30]} Nd6 {[%emt 00:04:51]} 33. b3 {[%clk 00:22:56]} {[%emt 00:00:33]} Ne4
34. Re1 {[%emt 00:14:43]} Nd6 {[%emt 00:06:12]} 35. Rh1 {[%clk 00:15:24]}
{[%emt 00:02:55]} Ne4 {[%clk 00:05:39]} {[%emt 00:00:04]} 36. Nxe4 {[%emt
00:02:25]} Rxe4 {[%clk 00:04:14]} {[%emt 00:01:23]} 37. Rxe4 {[%emt 00:00:33]}
dxe4+ {[%emt 00:02:41]} 38. Ke2 {[%clk 00:12:44]} {[%emt 00:01:02]} f6 {[%emt
00:04:58]} 39. Rg1 {[%emt 00:00:46]} f5 {[%emt 00:07:11]} 40. Rc1 {[%emt
00:02:50]} Rd8 {[%emt 00:05:30]} 41. f3 {[%clk 00:39:11]} {[%emt 00:06:35]}
1/2-1/2

[Event "FIDE Grand Swiss 2023"]
[Site "Villa Marina, Douglas, Isle of Man, Isle Of Man"]
[Date "2023.10.26"]
[Round "2.6"]
[White "Abdusattorov, Nodirbek"]
[Black "Narayanan.S.L"]
[Result "1/2-1/2"]
[TimeControl "40/90 + 30 + 30s/move"]
[WhiteFideId "14204118"]
[BlackFideId "5058422"]
[WhiteElo "2716"]
[BlackElo "2651"]

1. d4 {[%clk 01:40:34]} {[%emt 00:00:25]} Nf6 {[%clk 01:40:50]} {[%emt
00:00:10]} 2. c4 {[%clk 01:40:34]} {[%emt 00:00:31]} e6 {[%clk 01:41:13]}
{[%emt 00:00:06]} 3. Nf3 {[%clk 01:40:42]} {[%emt 00:00:22]} d5 {[%clk
01:41:31]} {[%emt 00:00:12]} 4. Nc3 {[%clk 01:40:55]} {[%emt 00:00:17]} c5
{[%clk 01:41:56]} {[%emt 00:00:05]} 5. Bf4 {[%clk 01:38:23]} {[%emt 00:03:03]}
cxd4 {[%clk 01:42:17]} {[%emt 00:00:09]} 6. Nxd4 {[%clk 01:38:47]} {[%emt
00:00:06]} Nbd7 {[%clk 01:42:38]} {[%emt 00:00:08]} 7. Qa4 {[%clk 01:38:47]}
{[%emt 00:00:31]} Bc5 {[%clk 01:42:40]} {[%emt 00:00:27]} 8. Nb3 {[%clk
01:38:15]} {[%emt 00:01:03]} O-O {[%clk 01:38:33]} {[%emt 00:04:36]} 9. Nxc5
{[%clk 01:33:44]} {[%emt 00:05:02]} Nxc5 {[%clk 01:38:56]} {[%emt 00:00:06]} 10.
Qa3 {[%clk 01:32:45]} {[%emt 00:01:30]} b6 {[%clk 01:32:33]} {[%emt 00:06:52]}
11. e3 {[%clk 01:32:12]} {[%emt 00:01:04]} Bb7 {[%clk 01:30:52]} {[%emt
00:02:11]} 12. Rd1 {[%clk 01:23:02]} {[%emt 00:09:39]} Qe7 {[%clk 01:27:30]}
{[%emt 00:03:51]} 13. Be2 {[%clk 01:14:49]} {[%emt 00:08:45]} e5 {[%clk
01:20:52]} {[%emt 00:07:08]} 14. Bg5 {[%clk 01:14:09]} {[%emt 00:01:10]} dxc4
{[%clk 01:21:00]} {[%emt 00:00:22]} 15. O-O {[%clk 01:14:26]} {[%emt 00:00:12]}
Qe6 {[%clk 01:20:17]} {[%emt 00:01:13]} 16. Bxf6 {[%clk 01:14:50]} {[%emt
00:00:07]} gxf6 {[%clk 01:20:37]} {[%emt 00:00:09]} 17. Rd2 {[%clk 01:15:09]}
{[%emt 00:00:11]} Kh8 {[%clk 01:06:59]} {[%emt 00:14:08]} 18. f3 {[%clk
01:09:57]} {[%emt 00:05:42]} Rg8 {[%clk 00:53:43]} {[%emt 00:13:45]} 19. Qb4
{[%clk 00:55:04]} {[%emt 00:15:25]} Nd3 {[%clk 00:37:32]} {[%emt 00:16:40]} 20.
Bxd3 {[%clk 00:45:19]} {[%emt 00:10:15]} cxd3 {[%clk 00:37:51]} {[%emt
00:00:11]} 21. e4 {[%clk 00:35:43]} {[%emt 00:10:07]} Rgd8 {[%clk 00:34:49]}
{[%emt 00:03:31]} 22. Rfd1 {[%clk 00:31:50]} {[%emt 00:04:23]} Rd4 {[%clk
00:32:22]} {[%emt 00:02:57]} 23. Qb3 {[%clk 00:31:15]} {[%emt 00:01:05]} Qxb3
{[%clk 00:26:45]} {[%emt 00:06:07]} 24. axb3 {[%clk 00:31:44]} {[%emt
00:00:02]} Rad8 {[%clk 00:27:05]} {[%emt 00:00:09]} 25. Kf2 {[%clk 00:27:29]}
{[%emt 00:04:45]} a5 {[%clk 00:21:01]} {[%emt 00:06:34]} 26. Ra1 {[%clk
00:27:47]} {[%emt 00:00:13]} Kg7 {[%clk 00:19:07]} {[%emt 00:02:24]} 27. Ke3
{[%clk 00:25:37]} {[%emt 00:02:40]} Bc8 {[%clk 00:15:59]} {[%emt 00:03:38]} 28.
Nd5 {[%clk 00:23:10]} {[%emt 00:02:58]} Be6 {[%clk 00:16:00]} {[%emt 00:00:28]}
29. Nxb6 {[%clk 00:23:07]} {[%emt 00:00:34]} Rb4 {[%clk 00:14:46]} {[%emt
00:01:43]} 30. Na4 {[%clk 00:23:13]} {[%emt 00:00:24]} Bxb3 {[%clk 00:14:05]}
{[%emt 00:01:11]} 31. Nc5 {[%clk 00:23:04]} {[%emt 00:00:40]} Bc2 {[%clk
00:12:52]} {[%emt 00:01:42]} 32. Rxa5 {[%clk 00:23:23]} {[%emt 00:00:12]} Rxb2
{[%clk 00:13:10]} {[%emt 00:00:11]} 33. Ra3 {[%clk 00:23:36]} {[%emt 00:00:18]}
1/2-1/2